bitfinex/quotes_ETHUSD_20250411
["timestamp","ask_amount","ask_price","bid_price","bid_amount"]
[1744383462249,12.84387,1557.2,1557.0,0.50020107]
[1744383462443,6.42148,1557.3,1557.0,1.19251118]
[1744383462655,6.42219,1557.1,1557.0,0.50020107]
[1744383463305,6.42182,1557.2,1557.0,0.50020107]
[1744383463500,6.42219,1557.1,1557.0,0.50020107]
[1744383464160,6.42182,1557.2,1557.0,0.50020107]
[1744383464488,12.84397,1557.2,1557.0,0.50020107]
[1744383464686,6.42182,1557.2,1557.0,0.50020107]
[1744383464895,6.42219,1557.1,1557.0,0.50020107]
[1744383466491,6.42182,1557.2,1557.0,0.50020107]
[1744383466694,12.51113,1557.4,1557.0,6.92266107]
[1744383466876,12.51113,1557.4,1557.1,0.796]
[1744383467073,12.51113,1557.4,1557.2,0.50020107]
[1744383467279,12.84236,1557.4,1557.2,0.50020107]
[1744383467479,12.84244,1557.4,1557.2,0.50020107]
[1744383467661,6.42137,1557.3,1557.2,0.50020107]
[1744383469294,6.42192,1557.2,1556.9,7.25094]
[1744383469595,12.84393,1557.2,1556.9,0.89222255]
[1744383469821,12.84393,1557.2,1556.8,6.42332]
[1744383469822,6.42327,1556.9,1556.7,1.30553836]
[1744383470119,6.42425,1556.6,1556.3,7.20487]
[1744383470320,12.84885,1556.6,1556.3,3.98139132]
[1744383470606,6.42484,1556.5,1556.3,3.98139132]
[1744383470821,6.42549,1556.3,1556.2,5.60393468]
[1744383473294,6.42549,1556.3,1556.0,6.42667]
[1744383473498,6.42549,1556.3,1556.0,6.49092967]
[1744383473705,6.42549,1556.3,1556.0,13.32718608]
[1744383473902,14.88687,1556.5,1556.2,7.17717]
[1744383474209,6.42522,1556.4,1556.1,6.42631]
[1744383474361,6.42522,1556.4,1556.1,12.85249]
[1744383474565,14.88677,1556.5,1556.1,12.85249]
[1744383474566,14.88677,1556.5,1556.1,6.42618]
[1744383474792,21.31174,1556.5,1556.1,6.42618]
[1744383474989,21.31174,1556.5,1556.1,7.89212947]
[1744383475223,14.88677,1556.5,1556.1,7.9563825]
[1744383475426,14.88668,1556.5,1556.3,0.7942]
[1744383475812,21.31159,1556.5,1556.3,0.7942]
[1744383476140,21.31159,1556.5,1556.1,7.22038]
[1744383476141,6.4252,1556.4,1556.1,7.22038]
[1744383476443,14.88679,1556.5,1556.2,6.42567]
[1744383476996,21.31167,1556.5,1556.2,6.42567]
[1744383477626,14.88679,1556.5,1556.2,12.85146]
[1744383477828,21.31175,1556.5,1556.2,6.42567]
[1744383478000,14.88679,1556.5,1556.2,13.573447]
[1744383478200,21.31163,1556.5,1556.2,7.147657]
[1744383478510,21.3117,1556.5,1556.2,7.147657]
[1744383478711,21.31167,1556.5,1556.2,7.147657]
[1744383479107,6.4256,1556.3,1556.1,0.7942]
[1744383479430,6.4256,1556.3,1556.0,11.23338469]
[1744383479431,12.85128,1556.3,1556.0,0.47397608]
[1744383479608,12.8523,1556.2,1555.9,7.24673]
[1744383479812,6.42606,1556.2,1555.9,7.24673]
[1744383480013,6.42562,1556.3,1555.9,1.544373]
[1744383480259,6.4252,1556.4,1556.0,6.42658]
[1744383480422,20.97672,1556.5,1556.2,6.42567]
[1744383480818,27.40157,1556.5,1556.2,6.42567]
[1744383481251,20.97667,1556.5,1556.2,13.63995]
[1744383481961,20.97676,1556.5,1556.2,0.7885]
[1744383482127,18.93963,1556.5,1556.2,7.21436]
[1744383482328,18.93976,1556.5,1556.2,7.21436]
[1744383482549,6.42549,1556.3,1556.0,7.22601]
[1744383482857,12.85137,1556.3,1556.0,7.22601]
[1744383483059,6.42511,1556.4,1556.1,6.42621]
[1744383483236,18.93956,1556.5,1556.2,7.22514]
[1744383483427,6.42509,1556.4,1556.2,0.7993]
[1744383483627,6.42549,1556.3,1556.1,0.722551]
[1744383484025,6.42614,1556.2,1556.0,0.7725]
[1744383484772,6.42558,1556.3,1556.0,0.7725]
[1744383484938,6.42591,1556.2,1556.0,0.7725]
[1744383485277,6.42558,1556.3,1556.0,7.19911]
[1744383485473,6.42558,1556.3,1556.0,13.62572]
[1744383485678,6.42466,1556.6,1556.2,6.42564]
[1744383486129,6.42467,1556.5,1556.2,12.85142]
[1744383486333,12.84952,1556.5,1556.2,6.42564]
[1744383486575,6.42425,1556.6,1556.1,7.788802]
[1744383486759,6.42493,1556.5,1556.2,6.4258]
[1744383486963,12.84873,1556.6,1556.3,7.23534]
[1744383487159,6.42431,1556.6,1556.3,7.23534]
[1744383487476,6.42431,1556.6,1556.3,0.8099]
[1744383487670,6.4247,1556.5,1556.3,0.8099]
[1744383487861,12.84897,1556.6,1556.3,8.7280476]
[1744383488061,12.84897,1556.6,1556.3,7.23534]
[1744383488690,6.42473,1556.5,1556.3,0.8099]
[1744383489358,6.42508,1556.4,1556.1,6.4262]
[1744383489564,6.42572,1556.3,1556.0,12.85322]
[1744383489870,6.42437,1556.6,1556.2,0.8048]
[1744383490071,6.42396,1556.7,1556.4,6.42495]
[1744383490460,12.84798,1556.7,1556.4,6.42495]
[1744383490786,6.42396,1556.7,1556.4,6.42495]
[1744383490951,3.0,1556.8,1556.5,7.23791]
[1744383490952,6.42356,1556.8,1556.5,7.23791]
[1744383491147,6.42356,1556.8,1556.5,7.3021494]
[1744383491351,6.42314,1556.9,1556.6,6.42423]
[1744383491647,6.42314,1556.9,1556.6,12.84836]
[1744383491847,6.42302,1556.9,1556.6,6.42413]
[1744383492096,12.84825,1556.7,1556.5,0.8135]
[1744383492296,6.42448,1556.6,1556.3,7.18383]
[1744383492465,6.42397,1556.7,1556.4,0.49930193]
[1744383492790,6.4244,1556.6,1556.4,0.49930193]
[1744383492955,12.84882,1556.6,1556.4,0.49930193]
[1744383493155,12.84796,1556.7,1556.4,6.92428193]
[1744383493376,6.42395,1556.7,1556.4,14.16660621]
[1744383493582,6.42395,1556.7,1556.4,13.66727428]
[1744383493891,6.42395,1556.7,1556.4,7.24213428]
[1744383494117,6.42354,1556.8,1556.4,7.24213428]
[1744383494118,6.42356,1556.8,1556.5,6.42453]
[1744383494405,12.84714,1556.8,1556.5,6.42453]
[1744383494613,12.8473,1556.8,1556.5,6.42453]
[1744383494815,6.42398,1556.7,1556.4,6.42498]
[1744383495014,16.14531,1556.8,1556.3,0.7585]
[1744383495176,12.84898,1556.6,1556.3,0.7585]
[1744383495378,12.84898,1556.6,1556.4,0.49982203]
[1744383495379,6.42467,1556.5,1556.4,0.49982203]
[1744383496311,6.42595,1556.2,1556.0,0.49982203]
[1744383496921,6.42632,1556.1,1556.0,0.49982203]
[1744383497207,6.42595,1556.2,1556.0,0.49982203]
[1744383497707,8.437,1556.4,1556.0,0.49982203]
[1744383497708,14.86217,1556.4,1556.0,7.69464323]
[1744383497877,6.4256,1556.3,1556.0,7.69464323]
[1744383498078,8.437,1556.4,1556.1,6.92586203]
[1744383498279,14.86211,1556.4,1556.1,0.49982203]
[1744383498601,6.42561,1556.3,1556.1,0.49982203]
[1744383498809,6.42561,1556.3,1556.0,6.42665]
[1744383498972,12.85131,1556.3,1555.9,7.65970876]
[1744383499177,12.85213,1556.2,1555.9,0.756]
[1744383499377,6.42635,1556.1,1555.9,0.756]
[1744383499673,6.42635,1556.1,1556.0,0.86149996]
[1744383499880,12.8516,1556.3,1556.0,0.86149996]
[1744383500091,14.98046,1556.3,1556.0,0.86149996]
[1744383500414,6.42591,1556.2,1556.0,0.86149996]
[1744383500586,6.42632,1556.1,1556.0,0.3601915]
[1744383500914,8.55454,1556.3,1555.9,10.84420551]
[1744383501083,6.42568,1556.3,1555.9,11.93505289]
[1744383501506,12.85144,1556.3,1556.0,0.50129885]
[1744383502717,6.42591,1556.2,1556.1,0.50129885]
[1744383503139,12.85158,1556.3,1556.1,0.50129885]
[1744383503452,6.42568,1556.3,1556.1,0.50129885]
[1744383503941,6.42568,1556.3,1555.9,14.70088738]
[1744383504291,6.42561,1556.3,1556.0,2.59531055]
[1744383504491,6.42605,1556.2,1556.0,1.12522181]
[1744383505133,6.42605,1556.2,1556.0,0.7651]
[1744383505722,6.42561,1556.3,1556.0,0.7651]
[1744383506094,6.42596,1556.2,1556.0,0.7651]
[1744383506295,14.86212,1556.4,1556.1,0.50113789]
[1744383506595,8.437,1556.4,1556.1,6.99159427]
[1744383506794,6.42432,1556.6,1556.2,13.67834]
[1744383507144,12.51392,1556.7,1556.2,13.67834]
[1744383507145,6.42482,1556.5,1556.2,0.8267]
[1744383507437,6.42512,1556.4,1556.2,0.8267]
[1744383507737,6.42391,1556.7,1556.2,7.25232]
[1744383507738,6.42436,1556.6,1556.2,7.25232]
[1744383508034,12.84803,1556.7,1556.3,8.01186138]
[1744383508217,6.42471,1556.5,1556.3,0.86114938]
[1744383508429,6.42508,1556.4,1556.3,0.86114938]
[1744383508737,6.42508,1556.4,1556.3,0.36001149]
[1744383508934,6.42508,1556.4,1556.0,13.65924]
[1744383509233,12.8503,1556.4,1556.1,0.50114237]
[1744383509530,6.4259,1556.2,1556.1,0.50114237]
[1744383509697,6.42845,1555.6,1555.2,9.6000623]
[1744383510026,12.8564,1555.7,1555.3,10.20611]
[1744383510342,6.42758,1555.8,1555.3,0.84088735]
[1744383510537,20.95511,1556.0,1555.3,0.84088735]
[1744383510538,6.42717,1555.9,1555.5,6.42865]
[1744383510735,6.4276,1555.8,1555.4,10.45028988]
[1744383510900,6.4276,1555.8,1555.4,18.00202887]
[1744383511101,6.4276,1555.8,1555.4,11.2130545]
[1744383511501,12.85545,1555.8,1555.4,7.55172899]
[1744383511931,6.4276,1555.8,1555.4,12.85811]
[1744383512144,14.86474,1556.0,1555.6,7.21941]
[1744383512307,21.29171,1556.0,1555.6,7.21941]
[1744383512638,14.86474,1556.0,1555.6,13.64764]
[1744383512891,23.485016,1556.0,1555.6,7.7035872]
[1744383513128,17.058116,1556.0,1555.6,14.1318372]
[1744383513346,23.485056,1556.0,1555.6,7.7035872]
[1744383513743,17.058116,1556.0,1555.6,14.1318272]
[1744383514107,17.058116,1556.0,1555.6,7.7035872]
[1744383514339,23.484996,1556.0,1555.6,7.7035872]
[1744383514649,23.484996,1556.0,1555.6,14.1318372]
[1744383515004,23.484996,1556.0,1555.6,7.7035872]
[1744383516040,8.7757596,1555.9,1555.6,0.7913]
[1744383516230,6.42791,1555.8,1555.4,7.21522]
[1744383516431,12.85588,1555.8,1555.4,7.21522]
[1744383516669,6.42791,1555.8,1555.4,13.64429]
[1744383516945,6.42791,1555.8,1555.5,6.42876]
[1744383517102,15.2032196,1555.9,1555.5,6.42876]
[1744383518254,8.7757696,1555.9,1555.5,12.85744]
[1744383518438,15.2030696,1555.9,1555.5,12.85735]
[1744383518639,8.7757696,1555.9,1555.5,6.42867]
[1744383518955,15.2031596,1555.9,1555.5,12.85734]
[1744383519119,15.2032796,1555.9,1555.5,6.42867]
[1744383519319,8.7757696,1555.9,1555.5,12.92162999]
[1744383519555,2.3484996,1555.9,1555.6,6.42827]
[1744383519930,8.7756596,1555.9,1555.6,6.42827]
[1744383520346,15.2030796,1555.9,1555.5,6.42867]
[1744383520554,14.37603796,1555.8,1555.4,13.64437]
[1744383520764,7.94813796,1555.8,1555.4,13.64437]
[1744383521268,14.37589796,1555.8,1555.4,13.64437]
[1744383521435,6.42815,1555.7,1555.4,0.7862]
[1744383521632,7.94790796,1555.8,1555.2,2.3011694]
[1744383521831,7.2227788,1555.7,1555.2,0.8146]
[1744383522032,7.2227788,1555.7,1555.3,6.4295]
[1744383522232,6.42893,1555.5,1555.2,7.24452]
[1744383522555,13.6510488,1555.7,1555.3,6.42951]
[1744383522728,7.2228788,1555.7,1555.3,6.42951]
[1744383522931,12.51765,1555.8,1555.3,0.724411]
[1744383523151,18.9456,1555.8,1555.4,6.42911]
[1744383523331,12.51765,1555.8,1555.4,7.19511]
[1744383523530,12.51765,1555.8,1555.5,6.42868]
[1744383523761,18.94541,1555.8,1555.4,13.62422]
[1744383523964,6.09,1555.8,1555.5,6.42877]
[1744383524206,14.86482,1556.0,1555.5,7.791158]
[1744383524471,12.85474,1555.9,1555.5,6.42877]
[1744383524825,14.86476,1556.0,1555.4,7.19511]
[1744383525030,24.95320551,1556.0,1555.4,0.766]
[1744383525374,6.42797,1555.7,1555.2,0.8259]
[1744383525526,12.85811,1555.5,1555.2,0.8259]
[1744383526035,6.42937,1555.4,1555.1,0.05]
[1744383526241,12.85891,1555.4,1555.1,0.05]
[1744383526643,6.43004,1555.2,1555.1,0.05]
[1744383528163,6.42975,1555.3,1555.1,0.05]
[1744383528671,12.85883,1555.4,1555.1,0.05]
[1744383528867,6.42964,1555.3,1555.1,0.05]
[1744383529242,12.85963,1555.3,1555.1,0.05]
[1744383529987,6.43004,1555.2,1555.1,0.05]
[1744383530775,6.42964,1555.3,1555.1,0.05]
[1744383530970,12.85945,1555.3,1555.1,0.05]
[1744383531172,7.715985,1555.2,1555.1,0.05]
[1744383532367,6.42964,1555.3,1555.1,0.05]
[1744383532368,8.4528241,1555.4,1555.1,0.05]
[1744383532677,14.8822641,1555.4,1555.1,0.05]
[1744383533184,7.714721,1555.5,1555.1,7.25542]
[1744383533380,6.42891,1555.5,1555.1,7.25542]
[1744383533566,17.84048,1555.6,1555.2,6.42986]
[1744383533772,6.42893,1555.5,1555.2,6.42986]
[1744383534279,12.85802,1555.5,1555.1,13.68579]
[1744383534475,6.42923,1555.4,1555.1,7.25543]
[1744383535560,6.42884,1555.5,1555.1,7.25543]
[1744383535887,8.212924,1555.5,1555.2,6.4299]
[1744383536059,6.42945,1555.4,1555.1,0.8251]
[1744383536459,6.42934,1555.4,1555.1,7.25552]
[1744383536660,6.42934,1555.4,1555.1,13.68584]
[1744383536884,14.642004,1555.5,1555.1,13.68584]
[1744383538200,7.8935204,1555.4,1555.1,0.8251]
[1744383538395,7.8935204,1555.4,1555.1,7.25555]
[1744383538695,1.4642004,1555.4,1555.1,13.686]
[1744383538885,24.26901,1555.6,1555.2,6.43003]
[1744383539064,12.85782,1555.5,1555.2,6.43003]
[1744383539260,6.42884,1555.5,1555.1,13.68584]
[1744383539470,8.412,1555.6,1555.3,6.42962]
[1744383539774,8.412,1555.6,1555.4,6.42912]
[1744383539974,1.484005,1555.6,1555.4,7.22792]
[1744383540177,6.42805,1555.7,1555.4,0.7988]
[1744383540400,14.504,1555.8,1555.5,6.42865]
[1744383540598,20.9317,1555.8,1555.5,6.42865]
[1744383541386,14.504,1555.8,1555.4,0.7988]
[1744383541594,6.42856,1555.6,1555.4,0.7988]
[1744383541977,1.285659,1555.6,1555.4,0.7988]
[1744383542179,1.285659,1555.6,1555.4,7.22798]
[1744383542379,27.3595,1555.8,1555.4,13.65716]
[1744383542578,27.3595,1555.8,1555.5,6.42873]
[1744383542579,20.93165,1555.8,1555.5,6.42873]
[1744383542903,8.414,1555.8,1555.6,12.8564]
[1744383543110,8.414,1555.8,1555.5,7.2275]
[1744383543397,6.42814,1555.7,1555.5,0.7988]
[1744383543599,6.42812,1555.7,1555.4,6.42919]
[1744383544211,6.42842,1555.6,1555.3,13.67913]
[1744383544497,6.42797,1555.7,1555.2,0.7786]
[1744383544699,6.42797,1555.7,1555.1,6.48033]
[1744383544700,6.42981,1555.3,1555.1,0.05]
[1744383544878,12.85962,1555.3,1555.1,0.05]
[1744383545197,6.43004,1555.2,1555.1,0.05]
[1744383550997,12.52004,1555.2,1555.1,0.05]
[1744383553825,19.73136551,1555.2,1555.1,0.05]
[1744383554136,22.99046606,1555.2,1555.1,0.05]
[1744383554512,22.44046606,1555.2,1555.1,0.05]
[1744383555913,22.99046606,1555.2,1555.1,0.05]
[1744383556337,22.44046606,1555.2,1555.1,0.05]
[1744383557457,22.99046606,1555.2,1555.1,0.05]
[1744383557949,18.77914055,1555.2,1555.1,0.05]
[1744383560533,15.77914055,1555.2,1555.1,0.05]
[1744383563118,15.77914055,1555.2,1555.1,0.8826]
[1744383564438,6.09,1555.2,1555.1,0.8826]
[1744383565011,12.85956,1555.3,1555.1,0.8826]
[1744383565212,6.43004,1555.2,1555.1,0.8826]
[1744383566524,12.85958,1555.3,1555.1,0.8826]
[1744383566856,6.42975,1555.3,1555.1,0.8826]
[1744383567155,6.42962,1555.3,1555.1,0.8826]
[1744383567523,12.85941,1555.3,1555.1,0.8826]
[1744383567749,6.43004,1555.2,1555.1,0.8826]
[1744383568652,6.43004,1555.2,1555.1,0.05]
[1744383571776,7.715561,1555.3,1555.1,0.05]
[1744383571929,6.43004,1555.2,1555.1,0.05]
[1744383575531,13.09136551,1555.2,1555.1,0.05]
[1744383575731,29.70644806,1555.2,1555.1,1e-05]
[1744383576054,22.93544806,1555.2,1555.1,1e-05]
[1744383576464,22.38544806,1555.2,1555.1,1e-05]
[1744383576635,18.72412255,1555.2,1555.1,1e-05]
[1744383577384,15.72412255,1555.2,1555.1,1e-05]
[1744383580270,9.63412255,1555.2,1555.1,1e-05]
[1744383580469,6.43004,1555.2,1555.1,1e-05]
[1744383585350,14.78562,1555.3,1555.1,1e-05]
[1744383588093,21.21547,1555.3,1555.1,1e-05]
[1744383588679,6.43004,1555.2,1555.1,1e-05]
[1744383589051,21.21564,1555.3,1555.1,1e-05]
[1744383590979,14.78562,1555.3,1555.1,1e-05]
[1744383591183,21.21542,1555.3,1555.1,1e-05]
[1744383591482,14.78571,1555.3,1555.1,1e-05]
[1744383591682,21.21548,1555.3,1555.1,1e-05]
[1744383592898,6.43004,1555.2,1555.1,1e-05]
[1744383593258,16.907258,1555.3,1555.1,1e-05]
[1744383595189,23.337068,1555.3,1555.1,1e-05]
[1744383595395,10.477548,1555.3,1555.1,1e-05]
[1744383595621,16.907188,1555.3,1555.1,1e-05]
[1744383595769,8.1207588,1555.2,1555.1,1e-05]
[1744383597086,1.6907188,1555.2,1555.1,1e-05]
[1744383597562,8.1207588,1555.2,1555.1,1e-05]
[1744383598194,1.6907188,1555.2,1555.1,1e-05]
[1744383598396,6.42893,1555.5,1555.2,7.24374]
[1744383598553,3.642797,1555.6,1555.2,7.24374]
[1744383598554,6.42939,1555.4,1555.2,0.8139]
[1744383598897,7.072329,1555.4,1555.2,0.8139]
[1744383599055,6.42962,1555.3,1555.1,1e-05]
[1744383599257,6.43004,1555.2,1555.1,1e-05]
[1744383599673,8.998939,1555.4,1555.1,1e-05]
[1744383599913,12.85966,1555.3,1555.1,1e-05]
[1744383600103,7.716006,1555.2,1555.1,1e-05]
[1744383600730,16.806006,1555.2,1555.1,1e-05]
[1744383600926,24.127006,1555.2,1555.1,1e-05]
[1744383601071,6.43373,1554.4,1554.2,5.60393468]
[1744383601421,6.09,1554.6,1554.4,6.43333]
[1744383601716,3.66132551,1555.1,1554.4,6.43333]
[1744383601717,4.285966,1555.2,1554.8,0.7811]
[1744383601873,4.285966,1555.2,1555.0,6.43084]
[1744383601874,1.285966,1555.2,1555.0,6.43084]
[1744383602227,0.48448055,1556.5,1555.3,7.61774]
[1744383602439,4.69356325,1556.6,1556.5,6.42467]
[1744383602612,10.75285628,1557.2,1556.6,6.42412]
[1744383602613,8.50672327,1557.1,1556.6,6.42412]
[1744383602812,15.6747945,1558.0,1557.2,6.42163]
[1744383603011,15.6747945,1558.0,1557.6,13.74278102]
[1744383603012,11.00512292,1557.7,1557.6,13.74278102]
[1744383603329,17.0992895,1558.4,1557.8,6.4193]
[1744383603636,0.5594628,1558.4,1558.3,10.67600868]
[1744383603844,19.60668292,1559.0,1558.9,6.41477]
[1744383603845,9.13e-06,1559.0,1558.9,6.41477]
[1744383604119,2.83e-06,1559.1,1559.0,9.41436]
[1744383604275,2.83e-06,1559.4,1559.3,6.41313]
[1744383604474,21.04758689,1559.8,1559.7,9.41148]
[1744383604475,6.72e-06,1559.8,1559.7,9.41148]
[1744383604675,0.0041,1560.4,1560.3,6.40902]
[1744383604937,0.394617,1561.2,1560.7,6.40738]
[1744383604938,21.24151974,1560.8,1560.7,6.40738]
[1744383605076,0.33454108,1560.6,1559.8,3.55]
[1744383605384,3.22719651,1560.5,1559.6,4.30876868]
[1744383605586,0.2,1560.1,1560.0,0.55]
[1744383605883,0.2,1560.1,1560.0,6.96025]
[1744383605884,6.66471355,1560.1,1560.0,6.96025]
[1744383606201,0.66647136,1560.1,1559.6,6.88715583]
[1744383606512,21.32878686,1560.8,1559.8,6.41104]
[1744383606805,3.55,1560.6,1560.4,9.42117199]
[1744383607020,8.315,1560.5,1560.4,3.75467199]
[1744383607237,11.16568488,1560.5,1560.2,5.87267726]
[1744383607539,11.16568488,1560.5,1560.0,13.40085348]
[1744383607540,4.11656849,1560.4,1560.0,13.40085348]
[1744383607741,3.0,1560.1,1560.0,13.40085348]
[1744383608122,1.11656849,1560.4,1560.0,13.40085348]
[1744383608123,1.11656849,1560.4,1560.0,19.81073348]
[1744383608329,0.55,1560.6,1560.3,6.40873]
[1744383608621,0.55,1560.6,1560.1,9.1006]
[1744383608787,14.5,1560.7,1560.4,13.67908856]
[1744383609200,14.5,1560.7,1560.5,3.0]
[1744383609421,14.5,1560.7,1560.4,13.67908856]
[1744383609619,2.2757,1560.6,1560.4,13.67908856]
[1744383609822,2.2757,1560.6,1560.5,17.16872274]
[1744383609994,23.117,1560.7,1560.5,17.16872274]
[1744383610195,9.40779,1560.6,1560.5,16.57090035]
[1744383610396,3.2,1561.0,1560.5,16.57090035]
[1744383610641,6.40729,1560.8,1560.5,16.57090035]
[1744383610822,0.640729,1560.7,1560.5,16.57090035]
[1744383611025,6.40648,1561.0,1560.5,5.83043119]
[1744383611228,6.40731,1560.8,1560.5,13.67908856]
[1744383611429,8.617,1561.1,1560.4,14.16840044]
[1744383611430,6.9582,1560.5,1560.4,14.16840044]
[1744383611591,6.40779,1560.6,1560.4,14.16840044]
[1744383611928,0.394617,1561.2,1560.4,14.16840044]
[1744383612090,14.5,1561.1,1560.6,13.48363626]
[1744383612291,15.36568,1562.4,1561.2,6.40498]
[1744383612512,12.80362,1562.1,1561.3,0.06404593]
[1744383612691,14.5,1561.9,1561.1,3.8033]
[1744383612897,20.90263,1561.9,1561.1,3.0]
[1744383613105,1.45,1561.8,1561.0,3.0]
[1744383613329,1.45,1561.8,1561.1,9.12647306]
[1744383613524,9.65082508,1562.0,1561.1,9.12647306]
[1744383613732,14.5,1561.7,1561.1,9.12647306]
[1744383614192,20.90358,1561.7,1561.1,9.12647306]
[1744383614389,14.5,1561.7,1561.1,9.12647306]
[1744383614713,23.90328,1561.7,1561.6,5.36377635]
[1744383615027,6.030616,1561.7,1561.6,5.36377635]
[1744383615514,9.65082508,1562.0,1561.6,5.36377635]
[1744383615717,6.40274,1561.9,1561.6,5.36377635]
[1744383616039,8.91,1562.2,1561.3,5.36377635]
[1744383616193,6.40211,1562.0,1561.3,5.36377635]
[1744383616396,6.4045,1561.4,1561.3,5.36377635]
[1744383616598,10.685369,1561.4,1561.3,5.36377635]
[1744383617027,14.5,1561.4,1561.3,5.36377635]
[1744383617230,15.31148,1562.2,1561.6,4.10894522]
[1744383617231,6.40309,1561.8,1561.6,4.10894522]
[1744383617532,6.40308,1561.8,1561.6,4.10894522]
[1744383617702,23.90327,1561.7,1561.6,4.10894522]
[1744383617901,23.90327,1561.7,1561.6,5.22e-06]
[1744383617902,32.95864661,1561.7,1561.6,5.22e-06]
[1744383618105,36.89481927,1561.7,1561.6,5.22e-06]
[1744383618431,9.40532,1561.2,1561.1,5.36377635]
[1744383618725,9.40614,1561.0,1560.9,7.24e-06]
[1744383618926,9.40697,1560.8,1560.7,7.83936544]
[1744383619098,2.92574904,1560.6,1560.5,5.45e-06]
[1744383619298,6.40861,1560.4,1560.3,5.44e-06]
[1744383619824,6.41107,1559.8,1559.7,12.89093896]
[1744383620127,6.4101,1560.1,1559.7,12.89093896]
[1744383620326,0.1303987,1559.8,1559.4,6.41251]
[1744383620633,14.5,1559.7,1559.5,3.0]
[1744383620832,14.62636043,1559.7,1559.1,0.05]
[1744383621154,6.41291,1559.4,1559.1,0.05]
[1744383621438,6.41321,1559.3,1559.1,0.05]
[1744383621643,0.11997556,1559.4,1559.1,0.05]
[1744383621843,15.65924172,1559.7,1559.1,0.05]
[1744383622058,6.41354,1559.2,1559.1,0.05]
[1744383622911,9.41354,1559.2,1559.1,0.05]
[1744383623112,14.5,1559.2,1559.1,0.05]
[1744383623513,7.97784417,1559.6,1559.1,0.6]
[1744383623747,9.22,1559.9,1559.2,1.4255]
[1744383623910,9.22,1559.9,1559.2,4.4255]
[1744383624241,6.4115,1559.7,1559.1,0.05]
[1744383624405,6.41273,1559.4,1559.1,0.05]
[1744383624605,14.5,1559.5,1559.1,0.05]
[1744383624837,20.91243,1559.5,1559.1,0.6]
[1744383625161,16.591243,1559.5,1559.1,0.05]
[1744383625309,14.5,1559.5,1559.4,0.55]
[1744383625705,14.5,1559.5,1559.4,3.55]
[1744383625913,14.5,1559.5,1559.4,0.55]
[1744383626109,9.221,1560.3,1559.7,0.55]
[1744383626322,13.74075,1560.3,1559.7,1.43171014]
[1744383626546,14.5,1560.2,1559.9,3.55]
[1744383626739,14.5,1560.2,1560.1,0.55]
[1744383627041,6.407,1560.8,1560.0,0.55]
[1744383627347,6.40614,1561.0,1560.3,0.55]
[1744383627639,6.40614,1561.0,1559.8,15.63186]
[1744383627640,6.40779,1560.6,1560.0,0.55]
[1744383627812,7.048999,1560.5,1559.9,0.55]
[1744383628012,6.40953,1560.2,1559.9,0.55]
[1744383628207,7.048999,1560.5,1559.8,0.55]
[1744383628511,7.048999,1560.5,1559.7,0.8176]
[1744383628512,6.41046,1560.0,1559.7,0.8176]
[1744383628710,14.5,1560.1,1559.8,0.55]
[1744383629433,14.5,1560.1,1559.7,0.8176]
[1744383629613,14.5,1560.1,1559.3,0.8599]
[1744383629614,6.41028,1560.0,1559.3,0.8599]
[1744383629810,12.82084,1560.0,1559.4,0.06411815]
[1744383630015,12.82084,1560.0,1559.3,3.8599]
[1744383630016,6.41083,1559.9,1559.3,0.8599]
[1744383630210,22.35986,1560.1,1559.3,0.8599]
[1744383630446,6.41131,1559.8,1559.3,0.8599]
[1744383630656,6.41152,1559.7,1559.3,0.8599]
[1744383630857,6.41115,1559.8,1559.1,6.46375]
[1744383631015,7.86016,1560.1,1559.2,3.0]
[1744383631016,6.41155,1559.7,1559.2,3.0]
[1744383631212,6.4107,1559.9,1559.1,0.05]
[1744383631547,6.41231,1559.5,1559.1,0.05]
[1744383631711,14.5,1559.6,1559.1,0.05]
[1744383631911,14.5,1559.6,1559.2,3.55]
[1744383632330,14.5,1559.6,1559.2,0.55]
[1744383632642,14.5,1559.6,1559.4,0.55]
[1744383632944,14.5,1559.6,1559.1,6.46395]
[1744383633135,14.5,1559.6,1559.1,1.637824]
[1744383633336,14.5,1559.6,1559.4,0.55]
[1744383633713,14.5,1559.6,1559.4,6.96257]
[1744383633908,6.41064,1560.0,1559.4,3.61411848]
[1744383634110,1.45,1560.1,1559.4,7.02657848]
[1744383634315,6.41052,1560.0,1559.4,4.25265785]
[1744383634521,6.41147,1559.8,1559.5,0.55]
[1744383634745,3.0,1560.1,1559.2,0.55]
[1744383634933,14.5,1559.7,1559.2,0.55]
[1744383635131,20.91163,1559.7,1559.2,0.55]
[1744383635330,6.41163,1559.7,1559.2,0.55]
[1744383635530,6.41133,1559.8,1559.4,0.55]
[1744383635831,6.41167,1559.7,1559.4,0.55]
[1744383636219,12.82244,1559.8,1559.2,0.55]
[1744383636421,3.0,1560.2,1559.2,0.55]
[1744383636422,14.5,1559.6,1559.2,0.55]
[1744383636621,9.221,1559.9,1559.2,0.55]
[1744383636822,6.41192,1559.6,1559.2,0.55]
[1744383637125,12.82407,1559.6,1559.2,0.55]
[1744383637341,7.33343,1559.8,1559.2,0.55]
[1744383637518,6.41237,1559.5,1559.2,0.55]
[1744383637719,14.5,1559.4,1559.2,0.55]
[1744383638152,6.41289,1559.4,1559.1,0.05]
[1744383638364,6.41354,1559.2,1559.1,0.05]
[1744383639224,21.75914,1559.2,1559.1,0.05]
[1744383639420,6.4162,1558.6,1558.2,0.9071622]
[1744383639648,15.63663,1558.7,1558.1,0.05]